[Event "Continental-ch Women America 2017"]
[Site "Villa Martelli"]
[Date "2017.09.13"]
[Round "8"]
[White "Amura, Claudia"]
[Black "Cori T, Deysi"]
[Result "1/2-1/2"]
[ECO "A40"]
[WhiteElo "2262"]
[BlackElo "2389"]
[Annotator "RC"]
[PlyCount "59"]
[EventDate "2017.??.??"]
[EventType "swiss"]
[EventCountry "ARG"]
[SourceTitle "playchess.com"]
[Source "ChessBase"]
[SourceQuality "1"]
[TimeControl "40/5400+30:1800+30"]

1. d4 {[%emt 0:00:00]} e6 {[%emt 0:00:24]} 2. Bf4 {[%emt 0:00:42]} c5 {[%emt 0:02:40]} 3. e3 {[%emt 0:00:27]} Nf6 {[%emt 0:03:53]} 4. Nd2 {[%emt 0:02:30]} Nc6 {[%emt 0:03:41]} 5. c3 {[%emt 0:00:31]} Be7 {[%emt 0:01:09]} 6. h3 {[%emt 0:03:44]} O-O {[%emt 0:01:56]} 7. Ngf3 {[%emt 0:00:33]} d6 {[%emt 0:01:05]} 8. Bd3 {[%emt 0:04:29]} e5 {[%emt 0:02:07]} 9. Bh2 {[%emt 0:01:51]} cxd4 {[%emt 0:01:03]} 10. exd4 {[%emt 0:00:53]} exd4 {[%emt 0:00:27]} 11. Nxd4 {[%emt 0:10:00]} Nxd4 {[%emt 0:01:03]} 12. cxd4 {[%emt 0:00:04]} Qb6 {[%emt 0:01:29]} 13. Nc4 {[%emt 0:00:25]} Qb4+ {[%emt 0:01:01]} 14. Qd2 {[%emt 0:03:09]} Nd5 {[%emt 0:06:23]} 15. O-O {[%emt 0:08:11]} Qxd2 {[%emt 0:02:25]} 16. Nxd2 {[%emt 0:00:05]} Nb4 {[%emt 0:00:18]} 17. Rae1 {[%emt 0:14:15]} Bg5 {[%emt 0:05:58]} 18. Bxh7+ {[%emt 0:01:41]} Kxh7 {[%emt 0:00:11]} 19. Nf3 {[%emt 0:01:46]} Nc2 {[%emt 0:19:24]} 20. Nxg5+ {[%emt 0:00:18]} Kg6 {[%emt 0:00:01]} 21. Bxd6 {[%emt 0:00:27]} Rd8 {[%emt 0:01:06]} 22. Be7 {[%emt 0:03:49]} Re8 {[%emt 0:02:45]} 23. Re5 {[%emt 0:02:59]} Nxd4 {[%emt 0:18:10]} 24. Re4 {[%emt 0:02:36]} Ne6 {[%emt 0:07:33]} 25. Nxe6 {[%emt 0:08:21]} Bxe6 {[%emt 0:00:06]} 26. Bc5 {[%emt 0:00:07]} Bxa2 {[%emt 0:01:49]} 27. Rg4+ {[%emt 0:02:41]} Kh7 {[%emt 0:00:02]} 28. Ra1 {[%emt 0:00:29]} Bd5 {[%emt 0:02:13]} 29. Bxa7 {[%emt 0:01:01]} Re4 {[%emt 0:04:28]} 30. Ra5 {[%emt 0:09:36]} 1/2-1/2

[Event "Continental-ch Women America 2017"]
[Site "Villa Martelli"]
[Date "2017.09.13"]
[Round "8"]
[White "Nejanky, Maisa"]
[Black "Cordero, Daniela"]
[Result "0-1"]
[ECO "C12"]
[WhiteElo "2018"]
[BlackElo "2005"]
[Annotator "NA RC"]
[PlyCount "78"]
[EventDate "2017.??.??"]
[EventType "swiss"]
[EventCountry "ARG"]
[SourceTitle "playchess.com"]
[Source "ChessBase"]
[SourceQuality "1"]
[TimeControl "40/5400+30:1800+30"]

{[%evp 8,77,4,-4,9,-4,8,-22,0,-25,2,-18,17,11,31,39,41,-69,-12,32767,-65,-47,-43,-147,-122,-163,-116,-118,-111,-125,-133,-164,-144,-144,-140,-142,-137,-146,-120,-116,0,-139,-112,-112,-140,-182,-179,-224,-211,-231,32767,32767,-197,-211,-167,-306,32767,32767,-348,-474,-489,-518,-585,-661,-747,-1314,-1351,-1315,-1406,32767,32767,-29988]} 1. e4 {[%emt 0:00:00]} e6 {[%emt 0:00:13]} 2. d4 {[%emt 0:00:00]} d5 {[%emt 0:00:05]} 3. Nc3 {[%emt 0:00:00]} Nf6 {[%emt 0:00:06]} 4. Bg5 {[%emt 0:00:00]} Bb4 {[%emt 0:00:13]} 5. e5 {[%emt 0:00:07]} h6 {[%emt 0:00:17]} 6. Bd2 {[%emt 0:01:39]} Bxc3 {[%emt 0:00:10]} 7. bxc3 {[%emt 0:00:04]} Ne4 {[%emt 0:00:07]} 8. Qg4 {[%emt 0:00:08]} g6 {[%emt 0:00:05]} 9. h4 {[%emt 0:01:44] LiveBook: 53 Games} Nxd2 {[%emt 0:03:55]} 10. Kxd2 {[%emt 0:00:05]} c5 {[%emt 0:00:27] C12: French: Classical System: McCutcheon Variation} 11. h5 {[%emt 0:11:03]} g5 {[%emt 0:00:43]} 12. Bd3 {[%emt 0:11:57]} (12. f4 $11) 12... Nc6 {[%emt 0:01:20]} 13. Nf3 {[%emt 0:02:57]} (13. f4 Qa5 14. fxg5 cxd4 15. Nf3 Qxc3+ 16. Ke2 Bd7 17. gxh6 O-O-O 18. Qf4 f6 19. Qxf6 Rdf8 {0-1 (49) Sawatzki,F (2366)-Brynell,S (2500) Germany 2013}) 13... c4 {[%emt 0:21:22]} 14. Be2 {[%emt 0:01:13]} f5 {[%emt 0:00:13]} 15. Qg3 $146 {[%emt 0:26:12]} ({Predecessor:} 15. exf6 $1 $15 Qxf6 (15... e5 16. Qg3 exd4 17. cxd4 Qxf6 {½-½ (39) Bianchi,M (2029)-Elburg,J (2330) SEMI email 2003}) 16. Rhf1) 15... Bd7 {[%emt 0:07:06]} 16. Rab1 {[%emt 0:02:52]} b6 {[%emt 0:00:10]} 17. Nh2 {[%emt 0:01:46]} Qe7 {[%emt 0:03:36]} 18. f4 {[%emt 0:12:50]} O-O-O {[%emt 0:04:14]} 19. Nf1 {[%emt 0:04:15]} Rdg8 {[%emt 0:07:01]} 20. Ne3 {[%emt 0:02:20]} Qa3 {[%emt 0:00:00]} 21. Qf2 {[%emt 0:05:27]} Rf8 {[%emt 0:31:09]} ({Don't go for} 21... Qxa2 $2 22. Ra1 $18) 22. g3 $1 $11 {[%emt 0:06:38] remains equal.} Qa5 {[%emt 0:04:38]} ({Don't blunder} 22... Qxa2 $2 23. Ra1 $18) 23. Ng2 {[%emt 0:01:20]} Qa3 {[%emt 0:03:11]} ({But not} 23... Qxa2 $2 24. Ra1 $18) (23... Kb8 $17 24. fxg5 hxg5) 24. Qe3 {[%emt 0:01:35]} g4 {[%emt 0:01:24]} ({Vergiftet wäre} 24... Qxa2 $2 25. Ra1 $18) 25. Qf2 {[%emt 0:01:14]} Kc7 {[%emt 0:01:02]} ({But not} 25... Qxa2 $2 26. Ra1 $18) 26. Ne3 {[%emt 0:00:43]} Rb8 {[%emt 0:01:02]} ({Nicht} 26... Qxa2 $2 27. Ra1 $18) 27. Bxg4 {[%emt 0:04:05]} fxg4 {[%emt 0:00:18]} 28. Nxg4 {[%emt 0:01:07]} b5 {[%emt 0:04:09]} 29. Qe3 {[%emt 0:00:35]} a5 {[%emt 0:04:32]} (29... Ne7 $142 30. Nh2 Nf5) 30. Nf6 {[%emt 0:00:30]} Bc8 {[%emt 0:00:38]} ({Wrong is} 30... Qxa2 $2 31. Ra1 $18) 31. f5 {[%emt 0:00:14]} (31. g4 $142) 31... Ne7 {[%emt 0:00:24]} 32. g4 {[%emt 0:00:44]} exf5 {[%emt 0:00:52]} 33. Qf4 {[%emt 0:00:32]} (33. g5 $142 hxg5 34. Qxg5) 33... Be6 {[%emt 0:00:58]} 34. gxf5 {[%emt 0:00:26]} Nxf5 {[%emt 0:00:27]} 35. Rhg1 {[%emt 0:00:19]} b4 {[%emt 0:00:59]} 36. Nxd5+ {[%emt 0:00:21]} Bxd5 {[%emt 0:00:15]} 37. e6+ {[%emt 0:00:44]} Nd6 {[%emt 0:00:29]} 38. Rg7+ {[%emt 0:00:16]} Kc6 {[%emt 0:00:06]} 39. Rd7 {[%emt 0:00:35]} Ne4+ {[%emt 0:01:17]} 0-1

[Event "Continental-ch Women America 2017"]
[Site "Villa Martelli"]
[Date "2017.09.13"]
[Round "8"]
[White "Besso, Guadalupe"]
[Black "Carraro, Denise"]
[Result "0-1"]
[ECO "A46"]
[WhiteElo "1994"]
[BlackElo "2071"]
[Annotator "NA RC"]
[PlyCount "132"]
[EventDate "2017.??.??"]
[EventType "swiss"]
[EventCountry "ARG"]
[SourceTitle "playchess.com"]
[Source "ChessBase"]
[SourceQuality "1"]
[TimeControl "40/5400+30:1800+30"]

{[%evp 8,132,0,4,17,-10,5,0,23,-8,-16,-33,32767,-31,-20,-47,-28,-92,-78,-105,-96,-110,-99,-106,-95,-104,-99,-109,-81,-75,-68,-91,-60,-67,32767,32767,32767,32767,32767,32767,32767,-64,-63,-41,-64,-83,-70,32767,32767,32767,32767,32767,32767,32767,32767,32767,32767,-259,-259,-297,-195,-181,-210,-205,-204,-202,-198,-215,-246,-196,-212,-268,32767,32767,32767,32767,-205,-291,-238,-190,-238,-280,-195,-183,-49,-245,-200,-220,-345,32767,32767,32767,32767,-439,-556,-456,-542,-420,-595,-1481,-648,-393,-944,-850,-850,-520,-729,-1697,-5092,-387,-971,-969,-3895,32767,32767,32767,32767,-29994,-29995,-29995,-29996,-29996,-29997,-29997,-29997,-29997,-29998]} 1. d4 {[%emt 0:00:00]} e6 {[%emt 0:00:20]} 2. Nf3 {[%emt 0:00:19]} Nf6 {[%emt 0:00:13]} 3. e3 {[%emt 0:02:22]} b6 {[%emt 0:01:21]} 4. Bd3 {[%emt 0:00:15]} Bb7 {[%emt 0:00:04]} 5. O-O {[%emt 0:01:10]} c5 {[%emt 0:01:32]} 6. c3 {[%emt 0:04:41]} Be7 {[%emt 0:00:31]} 7. Nbd2 {[%emt 0:00:40]} O-O {[%emt 0:00:57]} 8. Re1 {[%emt 0:05:32]} d5 {[%emt 0:08:52] LiveBook: 7 Games} 9. Ne5 {[%emt 0:08:10]} Nbd7 {[%emt 0:01:22]} 10. Nxd7 {[%emt 0:27:41] A47: 1 d4 Nf6 2 Nf3 b6: Torre, London and Colle Systems} Qxd7 {[%emt 0:06:01]} 11. Nf3 $146 {[%emt 0:02:43]} ({Find the theoretical novelty and annotate with similar games:} 11. b3 Qc7 12. Bb2 e5 13. c4 cxd4 14. exd4 e4 15. Bf1 Rfe8 16. Rc1 Bd6 17. h3 Bf4 {0-1 (29) Levit,R (2275)-De Firmian,N (2590) Chicago 1995}) 11... Qc7 {[%emt 0:00:06]} 12. Bd2 {[%emt 0:04:10]} Bd6 {[%emt 0:08:12]} 13. Rc1 {[%emt 0:06:53]} c4 {[%emt 0:02:05]} 14. Bb1 {[%emt 0:02:24]} Ne4 {[%emt 0:00:34]} 15. Rf1 {[%emt 0:02:26]} f5 {[%emt 0:21:07]} 16. Qe2 {[%emt 0:02:50]} b5 {[%emt 0:00:49]} 17. g3 {[%emt 0:06:52]} Rf6 {[%emt 0:00:27]} 18. Be1 {[%emt 0:00:47]} Raf8 {[%emt 0:20:07]} 19. Nd2 {[%emt 0:00:56]} Rh6 {[%emt 0:04:40]} 20. f4 {[%emt 0:05:13]} Nf6 {[%emt 0:03:46]} 21. Nf3 {[%emt 0:00:33]} Bc6 {[%emt 0:00:04]} 22. Bd2 {[%emt 0:04:19]} Be8 {[%emt 0:00:15]} 23. Qg2 {[%emt 0:00:56]} Qe7 {[%emt 0:02:52]} 24. Ne5 {[%emt 0:07:07]} Bh5 {[%emt 0:01:39]} 25. h3 {[%emt 0:00:18]} Bxe5 {[%emt 0:10:13]} 26. fxe5 {[%emt 0:01:33]} Ne4 {[%emt 0:00:05]} 27. Bxe4 {[%emt 0:02:03]} dxe4 {[%emt 0:00:04]} 28. Rf2 {[%emt 0:00:30]} Bf3 {[%emt 0:01:28]} 29. Rxf3 {[%emt 0:00:22]} exf3 {[%emt 0:00:04]} 30. Qxf3 {[%emt 0:00:05]} Rxh3 {[%emt 0:01:03]} 31. Kg2 {[%emt 0:00:06]} Rh6 {[%emt 0:00:23]} 32. Rf1 {[%emt 0:00:43]} g5 {[%emt 0:02:44]} 33. Qc6 {[%emt 0:00:48]} Qe8 {[%emt 0:01:36]} 34. Qxe8 {[%emt 0:00:49]} Rxe8 {[%emt 0:00:01]} 35. e4 {[%emt 0:00:26]} fxe4 {[%emt 0:00:57]} 36. Bxg5 {[%emt 0:00:18]} Rg6 {[%emt 0:00:01]} 37. Bf6 {[%emt 0:00:54]} Rb8 {[%emt 0:00:26]} 38. a3 {[%emt 0:00:32]} a5 {[%emt 0:00:16]} 39. Rf4 {[%emt 0:00:17]} b4 {[%emt 0:00:59]} 40. axb4 {[%emt 0:00:00]} axb4 {[%emt 0:00:02]} 41. Rxe4 {[%emt 0:01:01]} bxc3 {[%emt 0:04:56]} 42. bxc3 {[%emt 0:00:39]} Rb3 {[%emt 0:00:05]} 43. Re3 {[%emt 0:00:18]} Kf7 {[%emt 0:01:35]} 44. Kf3 {[%emt 0:00:15]} Ke8 {[%emt 0:00:04]} 45. g4 {[%emt 0:07:29] [#]} Kd7 $2 {[%emt 0:04:49]} ({Black should play} 45... Rb1 $1 $19 46. Kf4 Rf1+ 47. Rf3 Rxf3+ 48. Kxf3 Rh6) 46. Kf4 $2 {[%emt 0:00:15]} (46. d5 $1 $15) 46... Kc6 {[%emt 0:00:47]} 47. Rh3 {[%emt 0:01:37] [#]} h6 $1 {[%emt 0:04:23]} 48. Be7 {[%emt 0:02:07]} Rb1 {[%emt 0:01:20]} 49. Bb4 {[%emt 0:01:49]} Kd5 {[%emt 0:00:22]} 50. Ba5 {[%emt 0:02:40]} Rf1+ {[%emt 0:01:33]} 51. Kg3 {[%emt 0:01:41]} Rg1+ {[%emt 0:00:08]} 52. Kf3 {[%emt 0:00:03]} R1xg4 {[%emt 0:00:10]} 53. Rxh6 {[%emt 0:00:40]} Rg3+ {[%emt 0:00:01]} ({Less strong is} 53... Rxh6 54. Kxg4 Ke4 55. Kg5 $17) 54. Kf2 {[%emt 0:00:14]} Rg2+ {[%emt 0:00:04]} 55. Kf1 {[%emt 0:00:22]} Rg1+ {[%emt 0:04:18]} 56. Kf2 {[%emt 0:00:07]} R6g2+ {[%emt 0:00:03]} 57. Kf3 {[%emt 0:00:07]} Rg3+ {[%emt 0:03:25]} 58. Kf4 {[%emt 0:02:34]} Rg4+ {[%emt 0:00:01]} 59. Kf3 {[%emt 0:00:06]} R1g3+ {[%emt 0:00:05]} 60. Kf2 {[%emt 0:00:03]} Ke4 {[%emt 0:01:22]} 61. Rh2 {[%emt 0:02:11]} Re3 {[%emt 0:03:35]} 62. Rh6 {[%emt 0:02:38]} Rf3+ {[%emt 0:00:38]} 63. Ke1 {[%emt 0:00:39]} Rg1+ {[%emt 0:00:25]} 64. Ke2 {[%emt 0:00:06]} Rg2+ {[%emt 0:00:08]} 65. Ke1 {[%emt 0:00:35]} Ke3 {[%emt 0:00:12]} 66. Rh1 {[%emt 0:00:07]} Ra2 {[%emt 0:00:15]} 0-1

[Event "Continental-ch Women America 2017"]
[Site "Villa Martelli"]
[Date "2017.09.13"]
[Round "8"]
[White "Jorquera Cabello, Valentina"]
[Black "Cosme Contreras, Trilce"]
[Result "0-1"]
[ECO "B99"]
[WhiteElo "1977"]
[BlackElo "1872"]
[Annotator "NA RC"]
[PlyCount "134"]
[EventDate "2017.??.??"]
[EventType "swiss"]
[EventCountry "ARG"]
[SourceTitle "playchess.com"]
[Source "ChessBase"]
[SourceQuality "1"]
[TimeControl "40/5400+30:1800+30"]

{[%evp 9,134,32,34,21,34,5,24,25,37,27,54,27,27,30,44,0,0,19,32,17,83,47,109,91,87,-198,29,31,29,32767,32767,32767,32767,21,37,31,13,30,38,52,55,0,10,11,112,92,145,122,132,139,142,106,107,109,32767,32767,32767,32767,32767,32767,96,-95,-93,-87,32767,32767,32767,32767,32767,32767,32767,32767,32767,32767,-131,-108,-76,-84,-83,-96,-68,-83,-82,-80,-8,-8,12,0,0,9,0,0,227,-8,30,22,335,0,0,0,0,-1270,-6083,-29980,-2009,-1256,-5136,-6619,-29956,-29979,-29981,-12799,-11272,-29981,0,-29980,-29969,-29938,-12844,-29951,-29975,-29974,-29969,-29980,-29983,-29985,-29987]} 1. e4 {[%emt 0:00:00]} c5 {[%emt 0:00:07]} 2. Nf3 {[%emt 0:00:00]} d6 {[%emt 0:00:04]} 3. d4 {[%emt 0:00:00]} cxd4 {[%emt 0:00:06]} 4. Nxd4 {[%emt 0:00:00]} Nf6 {[%emt 0:00:06]} 5. Nc3 {[%emt 0:00:00]} a6 6. Bg5 {[%emt 0:00:10]} e6 {[%emt 0:00:34]} 7. f4 {[%emt 0:00:09]} Be7 {[%emt 0:00:17]} 8. Qf3 {[%emt 0:00:13]} Qc7 {[%emt 0:00:17]} 9. O-O-O {[%emt 0:00:31]} Nbd7 {[%emt 0:00:36]} 10. g4 {[%emt 0:01:55]} b5 11. Bxf6 {[%emt 0:02:29]} Nxf6 {[%emt 0:05:02]} 12. g5 {[%emt 0:00:14]} Nd7 {[%emt 0:00:18]} 13. f5 {[%emt 0:00:11]} Bxg5+ {[%emt 0:00:55]} 14. Kb1 {[%emt 0:00:06]} Ne5 {[%emt 0:01:38]} (14... O-O $11 {bleibt in der Remisbreite.}) 15. Qh5 {[%emt 0:00:34]} Qd8 {[%emt 0:01:59]} (15... Bf6 $14) 16. h4 {[%emt 0:00:21]} Bf6 {[%emt 0:08:05] LiveBook: 65 Games B99: Sicilian Najdorf: 6 Bg5 e6 7 f4 Be7 8 Qf3 Qc7 9 0-0-0 Nbd7} 17. Nxe6 $2 {[%emt 0:09:26]} (17. fxe6 $16 {is forced if you want to stay better.} O-O 18. Bh3) 17... Bxe6 $2 $146 {[%emt 0:00:19]} ({Black should try Find the theoretical novelty and annotate with similar games:} 17... g6 $19 18. Nxd8 gxh5 19. Nxf7 (19. Nc6 Nxc6 20. Rxd6 Bxc3 21. Rxc6 Be5 22. Rc5 f6 23. a4 bxa4 24. Bc4 {0-1 (39) Langheinrich,F (2405)-Boewer,R (2210) Werther 2002}) 19... Kxf7) 18. fxe6 {[%emt 0:00:05]} O-O {[%emt 0:01:58]} 19. exf7+ {[%emt 0:02:59]} Kh8 {[%emt 0:02:30]} 20. Bh3 {[%emt 0:04:04]} Rxf7 {[%emt 0:03:46]} 21. Nd5 {[%emt 0:10:51]} g6 {[%emt 0:16:48]} 22. Qe2 {[%emt 0:00:26]} Bxh4 {[%emt 0:11:19]} 23. Be6 {[%emt 0:02:11]} Rf2 {[%emt 0:03:01]} 24. Qe3 {[%emt 0:00:13]} Qg5 {[%emt 0:01:32]} 25. Qh3 {[%emt 0:04:29]} Nf3 {[%emt 0:01:51]} 26. Bg4 {[%emt 0:00:32]} Nd2+ {[%emt 0:02:32]} (26... Ne5 $1 $11) 27. Ka1 {[%emt 0:00:16]} Nxe4 {[%emt 0:04:50]} 28. Qxh4 {[%emt 0:01:29]} Qxh4 {[%emt 0:00:04]} 29. Rxh4 {[%emt 0:00:06]} Rxc2 {[%emt 0:03:21]} 30. Kb1 {[%emt 0:46:30]} Rf2 {[%emt 0:04:05]} 31. Rdh1 {[%emt 0:02:23]} Ra7 {[%emt 0:03:56]} 32. Bd1 {[%emt 0:06:54]} Nd2+ {[%emt 0:02:45]} 33. Kc1 {[%emt 0:00:22]} Nc4 {[%emt 0:00:26]} 34. Bc2 {[%emt 0:00:36]} Ne5 {[%emt 0:00:17]} 35. Nf4 $2 {[%emt 0:01:08]} (35. Rf4 $16 {keeps the pressure on.} Rxf4 36. Nxf4) 35... Rc7 {[%emt 0:07:23]} 36. Kb1 {[%emt 0:04:20]} Rfxc2 {[%emt 0:06:48]} 37. Nd5 {[%emt 0:00:33]} R2c5 {[%emt 0:01:20]} 38. Nxc7 {[%emt 0:00:51]} Rxc7 {[%emt 0:00:04]} 39. Rd1 {[%emt 0:01:12]} Nf7 {[%emt 0:01:45]} 40. Re4 {[%emt 0:00:00]} Kg7 {[%emt 0:01:13]} 41. Re8 {[%emt 0:00:44]} g5 {[%emt 0:04:46]} 42. Ra8 {[%emt 0:00:39]} g4 {[%emt 0:01:54]} 43. Rxa6 {[%emt 0:01:48]} Rc5 {[%emt 0:01:29]} 44. a4 {[%emt 0:03:09]} bxa4 {[%emt 0:06:05]} 45. Rxa4 {[%emt 0:00:06]} h5 {[%emt 0:00:19]} 46. b4 $1 {[%emt 0:01:55] [#]} Rf5 {[%emt 0:09:52]} (46... Rg5 $1 $17 47. Ra5 Ne5) 47. Ra5 {[%emt 0:02:03]} Kg6 {[%emt 0:01:45]} 48. Rxf5 {[%emt 0:00:28]} Kxf5 {[%emt 0:01:52]} 49. Rf1+ {[%emt 0:00:22]} Kg6 {[%emt 0:02:52]} 50. Kc2 {[%emt 0:01:49]} g3 $2 {[%emt 0:05:20]} (50... h4 $11 51. b5 h3) 51. Kd2 $2 {[%emt 0:02:02]} ({White must play} 51. b5 $18) 51... Ne5 {[%emt 0:06:45]} (51... Ng5 $5 {[%cal Rh5h4]} 52. Ra1 h4 $11) 52. Ke2 {[%emt 0:00:50]} Kg5 $2 {[%emt 0:01:24]} (52... g2 $11 53. Rb1 (53. Rg1 Nc6 $11) 53... Kf6) 53. Rf8 $2 {[%emt 0:00:29]} (53. b5 $18) 53... Kg4 {[%emt 0:01:42]} 54. Rg8+ {[%emt 0:01:50]} Kh3 $1 {[%emt 0:00:29]} 55. Kf1 $2 {[%emt 0:02:10]} (55. b5 $11 Nc4 56. Rb8) 55... Kh2 {[%emt 0:00:40]} 56. b5 {[%emt 0:00:32]} h4 {[%emt 0:00:24]} (56... Ng4 $142 57. Re8 g2+ 58. Ke2 g1=Q 59. Kd2 Qd4+ 60. Kc1 Ne3 61. Rc8 h4 62. b6 Qxb6 63. Rc3 h3 64. Rd3 Qc6+ 65. Kd2 Nf1+ 66. Kd1 Qa4+ 67. Ke1 Kg2 68. Rd2+ Nxd2 69. Ke2 Nb1 70. Kd3 d5 71. Ke2 Qc2+ 72. Ke3 Qe4#) 57. b6 {[%emt 0:00:08]} h3 {[%emt 0:00:34]} 58. b7 {[%emt 0:00:03]} Nd7 {[%emt 0:00:34]} 59. Rg7 {[%emt 0:00:53]} Nb8 {[%emt 0:00:28]} 60. Rg8 {[%emt 0:00:22]} Na6 {[%emt 0:00:27]} (60... g2+ $142 61. Ke2 g1=Q 62. Rxb8 Qa7 63. Re8 Qxb7 64. Re3 Kg2 65. Kd3 Qb5+ 66. Kc2 h2 67. Re1 h1=Q 68. Rxh1 Kxh1 69. Kd2 Qc4 70. Kd1 Kg2 71. Ke1 Kf3 72. Kd2 d5 73. Kd1 Ke3 74. Ke1 Qe2#) 61. Rg6 {[%emt 0:00:42]} Nb8 $11 {[%emt 0:00:14]} (61... g2+ {mates} 62. Kf2 d5 63. Rxa6 g1=Q+ 64. Ke2 Qg2+ 65. Ke1 Qg3+ 66. Ke2 Kg2 67. Rg6 Qxg6 68. b8=Q Qe4+ 69. Kd1 h2 70. Qb2+ Kg3 71. Qb8+ Qf4 72. Qh8 Qf3+ 73. Kc2 h1=Q 74. Qe5+ Kf2 75. Qd4+ Qe3 76. Qf6+ Qhf3 77. Qb2 Qd3+ 78. Kc1+ Kf1 79. Qd2 Qa3+ 80. Qb2 Qfc3+ 81. Kd1 Qa4+ 82. Qc2 Qcxc2#) 62. Rg8 {[%emt 0:00:03]} d5 {[%emt 0:00:51]} 63. Rxb8 {[%emt 0:00:38]} g2+ {[%emt 0:00:05]} 64. Ke2 {[%emt 0:00:17]} g1=Q {[%emt 0:00:05]} 65. Rc8 {[%emt 0:00:11]} Qg4+ {[%emt 0:00:56]} 66. Kd3 {[%emt 0:03:02]} Qe4+ {[%emt 0:00:20]} 67. Kc3 {[%emt 0:00:06]} d4+ {[%emt 0:00:07]} 0-1

[Event "Continental-ch Women America 2017"]
[Site "Villa Martelli"]
[Date "2017.09.14"]
[Round "9"]
[White "Vazquez Maccarini, Danitza"]
[Black "Arribas Robaina, Maritza"]
[Result "1/2-1/2"]
[ECO "C03"]
[WhiteElo "2173"]
[BlackElo "2273"]
[Annotator "RC"]
[PlyCount "33"]
[EventDate "2017.??.??"]
[EventType "swiss"]
[EventCountry "ARG"]
[SourceTitle "playchess.com"]
[Source "ChessBase"]
[SourceQuality "1"]
[TimeControl "40/5400+30:1800+30"]

1. e4 {[%emt 0:00:00]} e6 {[%emt 0:00:05]} 2. d4 {[%emt 0:00:00]} d5 {[%emt 0:00:06]} 3. Nd2 {[%emt 0:00:03]} Ne7 {[%emt 0:00:12]} 4. Bd3 {[%emt 0:02:36]} g6 {[%emt 0:00:53]} 5. Ne2 {[%emt 0:01:04]} Bg7 {[%emt 0:01:19]} 6. e5 {[%emt 0:01:56]} c5 {[%emt 0:02:09]} 7. c3 {[%emt 0:00:57]} Nec6 {[%emt 0:04:45]} 8. O-O {[%emt 0:04:31]} O-O {[%emt 0:03:04]} 9. Nf3 {[%emt 0:09:34]} Nd7 {[%emt 0:01:14]} 10. Nf4 {[%emt 0:03:23]} cxd4 {[%emt 0:08:50]} 11. cxd4 {[%emt 0:01:08]} Qb6 {[%emt 0:01:13]} 12. Bc2 {[%emt 0:04:00]} Ne7 {[%emt 0:09:08]} 13. Re1 {[%emt 0:03:45]} Re8 {[%emt 0:04:53]} 14. Ba4 {[%emt 0:16:25]} Nc6 {[%emt 0:08:19]} 15. Rb1 {[%emt 0:02:36]} Nf8 {[%emt 0:00:34]} 16. b4 {[%emt 0:04:26]} Bd7 {[%emt 0:03:15]} 17. Be3 {[%emt 0:05:26]} 1/2-1/2